[Event "FINAL CAMPEONATO ABSOLUTO DE AJEDREZ CHILE 2018"]
[Site "CENTRO CULTURAL LO PRADO, Chile"]
[Date "2018.02.27"]
[Round "5.3"]
[White "DIAZ VILLAGRAN, Robert"]
[Black "HENRIQUEZ VILLAGRA, Cristobal"]
[Result "0-1"]
[TimeControl "90 minutos mas 30 segundos de incremento por movida"]
[WhiteTitle "FM"]
[BlackTitle "GM"]
[WhiteElo "2317"]
[BlackElo "2501"]

1. e4 {[%clk 01:30:12]} {[%emt 00:00:47]} c6 {[%clk 01:30:44]} {[%emt
00:00:16]} 2. d3 {[%clk 01:28:21]} {[%emt 00:02:21]} d5 {[%clk 01:29:24]}
{[%emt 00:01:50]} 3. Nd2 {[%clk 01:28:46]} {[%emt 00:00:05]} e5 {[%clk
01:29:18]} {[%emt 00:00:36]} 4. Ngf3 {[%clk 01:29:09]} {[%emt 00:00:07]} Nd7
{[%clk 01:29:42]} {[%emt 00:00:06]} 5. g3 {[%clk 01:28:01]} {[%emt 00:01:38]}
Ngf6 {[%clk 01:26:57]} {[%emt 00:03:16]} 6. Bg2 {[%clk 01:28:21]} {[%emt
00:00:10]} Bd6 {[%clk 01:27:16]} {[%emt 00:00:11]} 7. O-O {[%clk 01:28:16]}
{[%emt 00:00:34]} O-O {[%clk 01:27:39]} {[%emt 00:00:08]} 8. Re1 {[%clk
01:23:42]} {[%emt 00:05:04]} Re8 {[%clk 01:22:53]} {[%emt 00:05:15]} 9. Nh4
{[%clk 01:22:43]} {[%emt 00:01:30]} Nc5 {[%clk 01:11:03]} {[%emt 00:12:20]} 10.
h3 {[%clk 01:20:42]} {[%emt 00:02:31]} Bf8 {[%clk 01:00:20]} {[%emt 00:11:13]}
11. Qf3 {[%clk 01:16:44]} {[%emt 00:04:28]} a5 {[%clk 00:53:58]} {[%emt
00:06:52]} 12. a4 {[%clk 01:04:11]} {[%emt 00:13:03]} g6 {[%clk 00:46:35]}
{[%emt 00:07:53]} 13. Nf1 {[%clk 01:01:32]} {[%emt 00:03:08]} Bg7 {[%clk
00:43:53]} {[%emt 00:03:12]} 14. Kh2 {[%clk 01:00:26]} {[%emt 00:01:36]} Be6
{[%clk 00:39:01]} {[%emt 00:05:22]} 15. b3 {[%clk 00:57:01]} {[%emt 00:03:55]}
dxe4 {[%clk 00:30:19]} {[%emt 00:09:12]} 16. dxe4 {[%clk 00:57:24]} {[%emt
00:00:07]} Ncxe4 {[%clk 00:30:04]} {[%emt 00:00:45]} 17. Rxe4 {[%clk 00:56:47]}
{[%emt 00:01:07]} Nxe4 {[%clk 00:30:02]} {[%emt 00:00:33]} 18. Qxe4 {[%clk
00:56:58]} {[%emt 00:00:19]} f5 {[%clk 00:30:27]} {[%emt 00:00:05]} 19. Qe3
{[%clk 00:50:37]} {[%emt 00:06:51]} f4 {[%clk 00:24:30]} {[%emt 00:06:26]} 20.
Qe4 {[%clk 00:47:10]} {[%emt 00:03:58]} g5 {[%clk 00:15:49]} {[%emt 00:09:11]}
21. Nf5 {[%clk 00:43:14]} {[%emt 00:04:26]} Bxf5 {[%clk 00:13:30]} {[%emt
00:02:49]} 22. Qxf5 {[%clk 00:43:22]} {[%emt 00:00:22]} e4 {[%clk 00:13:50]}
{[%emt 00:00:09]} 23. Bxe4 {[%clk 00:28:22]} {[%emt 00:15:30]} Rxe4 {[%clk
00:14:15]} {[%emt 00:00:05]} 24. Qxe4 {[%clk 00:28:49]} {[%emt 00:00:04]} Bxa1
{[%clk 00:14:42]} {[%emt 00:00:03]} 25. gxf4 {[%clk 00:27:41]} {[%emt
00:01:38]} Qd5 {[%clk 00:11:51]} {[%emt 00:03:21]} 26. Qxd5+ {[%clk 00:17:01]}
{[%emt 00:11:10]} cxd5 {[%clk 00:12:19]} {[%emt 00:00:01]} 27. Ne3 {[%clk
00:17:30]} {[%emt 00:00:01]} d4 {[%clk 00:11:09]} {[%emt 00:01:40]} 28. Nc4
{[%clk 00:17:52]} {[%emt 00:00:08]} Re8 {[%clk 00:11:01]} {[%emt 00:00:39]} 29.
Ne5 {[%clk 00:15:27]} {[%emt 00:02:55]} gxf4 {[%clk 00:10:54]} {[%emt
00:00:37]} 30. Bxf4 {[%clk 00:15:55]} {[%emt 00:00:02]} Rxe5 {[%clk 00:10:59]}
{[%emt 00:00:25]} 31. Bxe5 {[%clk 00:16:09]} {[%emt 00:00:16]} d3 {[%clk
00:11:26]} {[%emt 00:00:03]} 32. Bf4 {[%clk 00:16:32]} {[%emt 00:00:07]} Be5
{[%clk 00:11:48]} {[%emt 00:00:08]} 0-1

[Event "FINAL CAMPEONATO ABSOLUTO DE AJEDREZ CHILE 2018"]
[Site "CENTRO CULTURAL LO PRADO, Chile"]
[Date "2018.02.27"]
[Round "5.4"]
[White "GARCIA CARDENAS, Pablo"]
[Black "SALINAS HERRERA, Pablo Patrici"]
[Result "1/2-1/2"]
[TimeControl "90 minutos mas 30 segundos de incremento por movida"]
[WhiteTitle "IM"]
[BlackTitle "IM"]
[WhiteElo "2454"]
[BlackElo "2453"]

1. d4 {[%clk 01:30:57]} {[%emt 00:00:02]} d5 {[%clk 01:23:27]} {[%emt
00:07:33]} 2. c4 {[%clk 01:31:21]} {[%emt 00:00:06]} e6 {[%clk 01:23:53]}
{[%emt 00:00:04]} 3. Nc3 {[%clk 01:31:42]} {[%emt 00:00:08]} Nf6 {[%clk
01:24:19]} {[%emt 00:00:04]} 4. cxd5 {[%clk 01:31:58]} {[%emt 00:00:14]} exd5
{[%clk 01:24:44]} {[%emt 00:00:05]} 5. Bg5 {[%clk 01:32:23]} {[%emt 00:00:05]}
Be7 {[%clk 01:25:04]} {[%emt 00:00:10]} 6. e3 {[%clk 01:32:47]} {[%emt
00:00:06]} c6 {[%clk 01:25:27]} {[%emt 00:00:07]} 7. Qc2 {[%clk 01:32:09]}
{[%emt 00:01:08]} Nbd7 {[%clk 01:25:51]} {[%emt 00:00:06]} 8. Bd3 {[%clk
01:32:25]} {[%emt 00:00:13]} O-O {[%clk 01:26:13]} {[%emt 00:00:08]} 9. Nge2
{[%clk 01:32:25]} {[%emt 00:00:30]} Re8 {[%clk 01:26:37]} {[%emt 00:00:06]} 10.
f3 {[%clk 01:30:38]} {[%emt 00:02:17]} Nf8 {[%clk 01:26:53]} {[%emt 00:00:14]}
11. O-O {[%clk 01:30:41]} {[%emt 00:00:27]} g6 {[%clk 01:27:19]} {[%emt
00:00:05]} 12. Rad1 {[%clk 01:30:04]} {[%emt 00:01:06]} b5 {[%clk 01:27:26]}
{[%emt 00:00:23]} 13. Qc1 {[%clk 01:16:28]} {[%emt 00:14:06]} Bb7 {[%clk
01:22:43]} {[%emt 00:05:13]} 1/2-1/2

[Event "FINAL CAMPEONATO ABSOLUTO DE AJEDREZ CHILE 2018"]
[Site "CENTRO CULTURAL LO PRADO, Chile"]
[Date "2018.02.27"]
[Round "5.5"]
[White "ABARCA GONZALEZ, Nicolas"]
[Black "VERGARA JOFRE, Felipe Andres"]
[Result "0-1"]
[TimeControl "90 minutos mas 30 segundos de incremento por movida"]
[BlackTitle "FM"]
[WhiteElo "2388"]
[BlackElo "2270"]

1. e4 {[%clk 01:30:59]} c5 {[%clk 01:20:14]} {[%emt 00:10:47]} 2. Nf3 {[%clk
01:31:24]} {[%emt 00:00:04]} d6 {[%clk 01:20:41]} {[%emt 00:00:03]} 3. d4
{[%clk 01:31:48]} {[%emt 00:00:05]} cxd4 {[%clk 01:21:07]} {[%emt 00:00:05]} 4.
Nxd4 {[%clk 01:32:14]} {[%emt 00:00:04]} Nf6 {[%clk 01:21:35]} {[%emt
00:00:02]} 5. Nc3 {[%clk 01:32:38]} {[%emt 00:00:06]} a6 {[%clk 01:22:04]}
{[%emt 00:00:02]} 6. Bg5 {[%clk 01:32:58]} {[%emt 00:00:08]} Nbd7 {[%clk
01:22:29]} {[%emt 00:00:06]} 7. Bc4 {[%clk 01:33:23]} {[%emt 00:00:05]} Qb6
{[%clk 01:22:44]} {[%emt 00:00:15]} 8. Qd2 {[%clk 01:33:47]} {[%emt 00:00:06]}
e6 {[%clk 01:03:01]} {[%emt 00:20:13]} 9. O-O-O {[%clk 01:22:42]} {[%emt
00:11:35]} Be7 {[%clk 00:58:54]} {[%emt 00:04:37]} 10. f3 {[%clk 01:11:48]}
{[%emt 00:11:24]} O-O {[%clk 00:50:24]} {[%emt 00:09:01]} 11. h4 {[%clk
01:11:11]} {[%emt 00:01:06]} Nc5 {[%clk 00:41:03]} {[%emt 00:09:51]} 12. g4
{[%clk 01:08:59]} {[%emt 00:02:42]} Qc7 {[%clk 00:30:15]} {[%emt 00:11:18]} 13.
Bb3 {[%clk 01:08:48]} {[%emt 00:00:41]} Bd7 {[%clk 00:21:03]} {[%emt 00:09:42]}
14. h5 {[%clk 01:08:20]} {[%emt 00:00:57]} b5 {[%clk 00:19:56]} {[%emt
00:01:37]} 15. Be3 {[%clk 01:05:47]} {[%emt 00:03:03]} h6 {[%clk 00:14:25]}
{[%emt 00:06:01]} 16. g5 {[%clk 01:05:53]} {[%emt 00:00:24]} hxg5 {[%clk
00:14:51]} {[%emt 00:00:04]} 17. Bxg5 {[%clk 01:02:08]} {[%emt 00:04:15]} b4
{[%clk 00:15:16]} {[%emt 00:00:05]} 18. Qg2 {[%clk 01:02:31]} {[%emt 00:00:06]}
Kh7 {[%clk 00:09:50]} {[%emt 00:05:56]} 19. Nce2 {[%clk 00:46:41]} {[%emt
00:16:20]} Rac8 {[%clk 00:09:41]} {[%emt 00:00:39]} 20. Kb1 {[%clk 00:40:28]}
{[%emt 00:06:43]} e5 {[%clk 00:05:50]} {[%emt 00:04:22]} 21. Rdg1 {[%clk
00:38:28]} {[%emt 00:02:29]} Nxb3 {[%clk 00:02:19]} {[%emt 00:04:01]} 22. Bh6
{[%clk 00:24:13]} {[%emt 00:14:46]} Ng4 {[%clk 00:00:32]} {[%emt 00:02:18]} 23.
Nxb3 {[%clk 00:03:53]} {[%emt 00:20:49]} Qxc2+ {[%clk 00:01:01]} {[%emt
00:00:01]} 24. Ka1 {[%clk 00:04:23]} gxh6 {[%clk 00:01:28]} {[%emt 00:00:03]}
25. fxg4 {[%clk 00:04:46]} {[%emt 00:00:07]} Be6 {[%clk 00:00:46]} {[%emt
00:01:11]} 26. Rc1 {[%clk 00:02:49]} {[%emt 00:02:27]} Qd3 {[%clk 00:01:13]}
{[%emt 00:00:03]} 27. Rcd1 {[%clk 00:03:16]} {[%emt 00:00:03]} Qb5 {[%clk
00:00:50]} {[%emt 00:00:53]} 28. Qf3 {[%clk 00:02:44]} {[%emt 00:01:02]} Rc2
{[%clk 00:00:52]} {[%emt 00:00:28]} 29. Rh2 {[%clk 00:02:19]} {[%emt 00:00:56]}
Rfc8 {[%clk 00:00:58]} {[%emt 00:00:24]} 30. Kb1 {[%emt 00:00:01]} R2c7 {[%clk
00:00:33]} {[%emt 00:00:55]} 31. Ng3 {[%clk 00:01:05]} {[%emt 00:02:13]} a5
{[%clk 00:00:45]} {[%emt 00:00:19]} 32. Nf5 {[%clk 00:01:14]} {[%emt 00:00:21]}
a4 {[%clk 00:00:59]} {[%emt 00:00:16]} 33. Nc1 {[%emt 00:01:08]} Qc4 {[%clk
00:00:33]} {[%emt 00:00:56]} 34. Ne3 {[%clk 00:00:35]} {[%emt 00:00:30]} Qxc1+
{[%emt 00:00:19]} 0-1

[Event "FINAL CAMPEONATO ABSOLUTO DE AJEDREZ CHILE 2018"]
[Site "CENTRO CULTURAL LO PRADO, Chile"]
[Date "2018.02.27"]
[Round "5.6"]
[White "FUENTES PARRA, Victor Ignacio"]
[Black "AGUIRRE CONTRERAS, Cristian Ro"]
[Result "0-1"]
[TimeControl "90 minutos mas 30 segundos de incremento por movida"]
[BlackTitle "FM"]
[WhiteElo "2148"]
[BlackElo "2272"]

1. d4 {[%clk 01:19:45]} {[%emt 00:11:14]} Nf6 {[%clk 01:30:50]} {[%emt
00:00:10]} 2. Nf3 {[%clk 01:20:12]} {[%emt 00:00:03]} b6 {[%clk 01:31:04]}
{[%emt 00:00:16]} 3. Bf4 {[%clk 01:11:29]} {[%emt 00:09:13]} Bb7 {[%clk
01:31:23]} {[%emt 00:00:12]} 4. e3 {[%clk 01:11:50]} {[%emt 00:00:08]} g6
{[%clk 01:31:41]} {[%emt 00:00:12]} 5. h3 {[%clk 01:11:29]} {[%emt 00:00:51]}
Bg7 {[%clk 01:31:08]} {[%emt 00:01:04]} 6. Nbd2 {[%clk 01:11:51]} {[%emt
00:00:09]} O-O {[%clk 01:31:26]} {[%emt 00:00:12]} 7. Bd3 {[%clk 01:12:16]}
{[%emt 00:00:05]} d6 {[%clk 01:30:39]} {[%emt 00:01:17]} 8. O-O {[%clk
01:11:51]} {[%emt 00:00:54]} Nbd7 {[%clk 01:31:01]} {[%emt 00:00:09]} 9. Bh2
{[%clk 01:02:35]} {[%emt 00:09:45]} Qe8 {[%clk 01:31:05]} {[%emt 00:00:26]} 10.
Qe2 {[%clk 00:55:22]} {[%emt 00:07:44]} e5 {[%clk 01:22:43]} {[%emt 00:08:53]}
11. Ba6 {[%clk 00:54:17]} {[%emt 00:01:35]} Bxa6 {[%clk 00:59:13]} {[%emt
00:23:59]} 12. Qxa6 {[%clk 00:54:43]} {[%emt 00:00:05]} e4 {[%clk 00:59:32]}
{[%emt 00:00:10]} 13. Ne1 {[%clk 00:54:04]} {[%emt 00:01:08]} Qe7 {[%clk
00:59:29]} {[%emt 00:00:33]} 14. b4 {[%clk 00:48:35]} {[%emt 00:05:59]} Rfe8
{[%clk 00:42:10]} {[%emt 00:17:49]} 15. a4 {[%clk 00:35:49]} {[%emt 00:13:16]}
g5 {[%clk 00:34:21]} {[%emt 00:08:19]} 16. a5 {[%clk 00:25:56]} {[%emt
00:10:23]} g4 {[%clk 00:34:42]} {[%emt 00:00:09]} 17. axb6 {[%clk 00:26:03]}
{[%emt 00:00:24]} Nxb6 {[%clk 00:34:20]} {[%emt 00:00:52]} 18. h4 {[%clk
00:05:49]} {[%emt 00:20:44]} Nh5 {[%clk 00:34:37]} {[%emt 00:00:12]} 19. Qb5
{[%clk 00:06:01]} {[%emt 00:00:19]} d5 {[%clk 00:20:11]} {[%emt 00:14:56]} 20.
Qc6 {[%clk 00:00:59]} {[%emt 00:05:32]} Bf8 {[%clk 00:15:23]} {[%emt 00:05:18]}
21. Qxc7 {[%clk 00:00:42]} {[%emt 00:00:47]} Qxh4 {[%clk 00:15:35]} {[%emt
00:00:16]} 22. Rxa7 {[%clk 00:00:41]} {[%emt 00:00:33]} Re7 {[%clk 00:13:12]}
{[%emt 00:02:52]} 23. Rxa8 {[%clk 00:00:44]} {[%emt 00:00:28]} Rxc7 {[%clk
00:13:22]} {[%emt 00:00:19]} 24. Rxf8+ {[%clk 00:01:09]} {[%emt 00:00:05]} Kxf8
{[%clk 00:13:42]} {[%emt 00:00:10]} 25. Bxc7 {[%clk 00:01:37]} {[%emt
00:00:01]} Nd7 {[%clk 00:12:44]} {[%emt 00:01:28]} 26. Bd6+ {[%clk 00:01:04]}
{[%emt 00:01:03]} Ke8 {[%clk 00:12:52]} {[%emt 00:00:22]} 27. g3 {[%clk
00:01:10]} {[%emt 00:00:24]} Qf6 {[%clk 00:13:06]} {[%emt 00:00:16]} 28. Bc5
{[%clk 00:00:38]} {[%emt 00:01:02]} Qa6 {[%clk 00:12:41]} {[%emt 00:00:55]} 29.
Nb3 {[%clk 00:00:47]} {[%emt 00:00:20]} Ng7 {[%clk 00:11:44]} {[%emt 00:01:27]}
30. Kg2 {[%clk 00:00:45]} {[%emt 00:00:32]} h5 {[%clk 00:11:52]} {[%emt
00:00:23]} 31. Rh1 {[%clk 00:00:34]} {[%emt 00:00:42]} Qe2 {[%clk 00:12:20]}
{[%emt 00:00:02]} 32. Nc1 {[%clk 00:00:32]} {[%emt 00:00:32]} Qd1 {[%clk
00:12:05]} {[%emt 00:00:45]} 33. Nb3 {[%clk 00:00:44]} {[%emt 00:00:18]} Nf5
{[%clk 00:12:11]} {[%emt 00:00:25]} 34. b5 {[%clk 00:00:33]} {[%emt 00:00:41]}
Nxe3+ {[%clk 00:11:58]} {[%emt 00:00:43]} 35. fxe3 {[%clk 00:00:37]} {[%emt
00:00:25]} Qe2+ {[%clk 00:12:21]} {[%emt 00:00:07]} 36. Kg1 {[%clk 00:00:48]}
{[%emt 00:00:19]} Qxe1+ {[%clk 00:12:45]} {[%emt 00:00:07]} 37. Kg2 {[%clk
00:01:13]} {[%emt 00:00:05]} Qe2+ {[%clk 00:13:11]} {[%emt 00:00:04]} 38. Kg1
{[%clk 00:01:34]} {[%emt 00:00:09]} Qd1+ {[%clk 00:13:36]} {[%emt 00:00:05]}
0-1

[Event "FINAL CAMPEONATO ABSOLUTO DE AJEDREZ CHILE 2018"]
[Site "CENTRO CULTURAL LO PRADO, Chile"]
[Date "2018.02.27"]
[Round "6.2"]
[White "VERGARA JOFRE, Felipe Andres"]
[Black "FUENTES PARRA, Victor Ignacio"]
[Result "1-0"]
[TimeControl "90 minutos mas 30 segundos de incremento por movida"]
[WhiteTitle "FM"]
[WhiteElo "2270"]
[BlackElo "2148"]

1. e4 {[%clk 01:29:19]} {[%emt 00:01:41]} e6 {[%clk 01:30:51]} {[%emt
00:00:09]} 2. d4 {[%clk 01:29:46]} {[%emt 00:00:03]} d5 {[%clk 01:31:17]}
{[%emt 00:00:04]} 3. e5 {[%clk 01:30:15]} {[%emt 00:00:02]} c5 {[%clk
01:31:40]} {[%emt 00:00:05]} 4. c3 {[%clk 01:30:44]} Qb6 {[%clk 01:32:04]}
{[%emt 00:00:08]} 5. Nf3 {[%clk 01:31:10]} {[%emt 00:00:04]} cxd4 {[%clk
01:32:30]} {[%emt 00:00:05]} 6. cxd4 {[%clk 01:31:17]} {[%emt 00:00:23]} Bd7
{[%clk 01:32:55]} {[%emt 00:00:05]} 7. Nc3 {[%clk 01:30:15]} {[%emt 00:01:33]}
a6 {[%clk 01:33:20]} {[%emt 00:00:05]} 8. Bd3 {[%clk 01:19:53]} {[%emt
00:10:52]} h5 {[%clk 01:28:13]} {[%emt 00:05:37]} 9. a3 {[%clk 01:14:24]}
{[%emt 00:05:59]} Nh6 {[%clk 01:16:53]} {[%emt 00:11:49]} 10. O-O {[%clk
00:59:03]} {[%emt 00:15:52]} Be7 {[%clk 00:48:58]} {[%emt 00:28:25]} 11. h4
{[%clk 00:48:34]} {[%emt 00:10:59]} a5 {[%clk 00:39:28]} {[%emt 00:10:00]} 12.
Na4 {[%clk 00:24:17]} {[%emt 00:24:46]} Qa7 {[%clk 00:37:25]} {[%emt 00:02:33]}
13. Bg5 {[%clk 00:18:49]} {[%emt 00:05:58]} Nc6 {[%clk 00:18:28]} {[%emt
00:19:28]} 14. Bxe7 {[%clk 00:17:50]} {[%emt 00:01:29]} Kxe7 {[%clk 00:12:52]}
{[%emt 00:06:06]} 15. Bc2 {[%clk 00:10:00]} {[%emt 00:08:20]} b5 {[%clk
00:11:38]} {[%emt 00:01:43]} 16. Nc5 {[%clk 00:09:53]} {[%emt 00:00:36]} Rhc8
{[%clk 00:07:52]} {[%emt 00:04:16]} 17. Nxd7 {[%clk 00:09:38]} {[%emt
00:00:45]} Kxd7 {[%clk 00:06:04]} {[%emt 00:02:18]} 18. Qd2 {[%clk 00:08:48]}
{[%emt 00:01:21]} Ng8 {[%clk 00:00:36]} {[%emt 00:05:58]} 19. Bd3 {[%clk
00:04:12]} {[%emt 00:05:06]} Rab8 {[%clk 00:00:49]} {[%emt 00:00:17]} 20. Qf4
{[%clk 00:04:37]} {[%emt 00:00:05]} Ke8 {[%clk 00:00:40]} {[%emt 00:00:39]} 21.
Rac1 {[%clk 00:04:51]} {[%emt 00:00:15]} Nce7 {[%clk 00:00:32]} {[%emt
00:00:39]} 22. Qg5 {[%clk 00:02:01]} {[%emt 00:03:20]} g6 {[%clk 00:00:33]}
{[%emt 00:00:28]} 23. Qf4 {[%clk 00:02:10]} {[%emt 00:00:22]} b4 {[%clk
00:00:40]} {[%emt 00:00:24]} 24. a4 {[%clk 00:02:24]} {[%emt 00:00:15]} Nf5
{[%emt 00:00:40]} 25. Bxf5 {[%clk 00:02:14]} {[%emt 00:00:39]} exf5 {[%clk
00:00:58]} {[%emt 00:00:04]} 26. Ng5 {[%clk 00:01:18]} {[%emt 00:01:26]} Qd7
{[%clk 00:00:38]} {[%emt 00:00:50]} 27. Rc5 {[%clk 00:01:08]} {[%emt 00:00:40]}
Rxc5 {[%clk 00:00:38]} {[%emt 00:00:30]} 28. dxc5 {[%clk 00:01:12]} {[%emt
00:00:26]} Rc8 {[%clk 00:00:33]} {[%emt 00:00:35]} 29. Re1 {[%clk 00:01:22]}
{[%emt 00:00:21]} Qe7 {[%clk 00:00:33]} {[%emt 00:00:30]} 30. Rc1 {[%clk
00:00:38]} {[%emt 00:01:14]} Rxc5 {[%clk 00:00:33]} {[%emt 00:00:29]} 31. Rxc5
{[%clk 00:01:01]} {[%emt 00:00:07]} Qxc5 {[%clk 00:01:02]} {[%emt 00:00:02]} 32.
e6 {[%clk 00:01:31]} f6 {[%clk 00:00:38]} {[%emt 00:00:55]} 33. Qb8+ {[%clk
00:01:44]} {[%emt 00:00:17]} Ke7 {[%clk 00:01:04]} {[%emt 00:00:03]} 34. Qb7+
{[%clk 00:00:55]} {[%emt 00:01:19]} Kd6 {[%clk 00:01:27]} {[%emt 00:00:08]} 35.
Qd7+ {[%clk 00:00:34]} {[%emt 00:00:52]} Ke5 {[%clk 00:01:50]} {[%emt
00:00:07]} 36. Nf3+ {[%clk 00:00:37]} {[%emt 00:00:27]} Ke4 {[%clk 00:01:23]}
{[%emt 00:00:56]} 37. Qg7 {[%clk 00:00:33]} {[%emt 00:00:35]} Qc1+ {[%clk
00:00:44]} {[%emt 00:01:10]} 38. Kh2 {[%clk 00:01:02]} Qf4 {[%clk 00:01:05]}
{[%emt 00:00:08]} 39. Kh1 {[%clk 00:01:23]} {[%emt 00:00:09]} Qc1 {[%clk
00:00:32]} {[%emt 00:01:03]} 40. Ng1 {[%clk 00:01:52]} {[%emt 00:00:01]} Qc8
{[%clk 00:00:33]} {[%emt 00:00:28]} 41. Qd7 {[%clk 00:00:37]} {[%emt 00:01:46]}
Qf8 {[%clk 00:00:34]} {[%emt 00:00:30]} 42. Nf3 {[%clk 00:00:37]} {[%emt
00:00:30]} Qc5 {[%clk 00:00:32]} {[%emt 00:00:32]} 43. Qg7 {[%clk 00:00:45]}
{[%emt 00:00:21]} Qc1 {[%clk 00:00:33]} {[%emt 00:00:29]} 44. Ng1 {[%clk
00:01:12]} {[%emt 00:00:03]} Qc8 {[%clk 00:00:51]} {[%emt 00:00:12]} 45. Qxg6
{[%clk 00:00:52]} {[%emt 00:00:50]} Qxe6 {[%clk 00:01:13]} {[%emt 00:00:08]} 46.
Qxh5 {[%clk 00:01:20]} {[%emt 00:00:02]} Kd3 {[%clk 00:00:39]} {[%emt
00:01:05]} 47. Qd1+ {[%clk 00:01:15]} {[%emt 00:00:35]} Kc4 {[%clk 00:00:35]}
{[%emt 00:00:34]} 48. Qc2+ {[%clk 00:01:37]} {[%emt 00:00:09]} Kd4 {[%clk
00:00:52]} {[%emt 00:00:12]} 49. Nf3# {[%clk 00:02:02]} {[%emt 00:00:05]} 1-0

[Event "FINAL CAMPEONATO ABSOLUTO DE AJEDREZ CHILE 2018"]
[Site "CENTRO CULTURAL LO PRADO, Chile"]
[Date "2018.02.27"]
[Round "6.3"]
[White "SALINAS HERRERA, Pablo Patrici"]
[Black "ABARCA GONZALEZ, Nicolas"]
[Result "0-1"]
[TimeControl "90 minutos mas 30 segundos de incremento por movida"]
[WhiteTitle "IM"]
[WhiteElo "2453"]
[BlackElo "2388"]

1. d4 {[%clk 01:28:46]} {[%emt 00:02:14]} d6 {[%clk 01:30:46]} {[%emt
00:00:15]} 2. e4 {[%clk 01:28:23]} {[%emt 00:00:52]} g6 {[%clk 01:31:06]}
{[%emt 00:00:10]} 3. Nf3 {[%clk 01:28:40]} {[%emt 00:00:13]} Bg7 {[%clk
01:31:29]} {[%emt 00:00:06]} 4. Be2 {[%clk 01:28:54]} {[%emt 00:00:16]} Nf6
{[%clk 01:31:54]} {[%emt 00:00:05]} 5. Nc3 {[%clk 01:29:20]} {[%emt 00:00:04]}
O-O {[%clk 01:32:20]} {[%emt 00:00:05]} 6. O-O {[%clk 01:29:46]} {[%emt
00:00:04]} a6 {[%clk 01:32:44]} {[%emt 00:00:07]} 7. a4 {[%clk 01:28:48]}
{[%emt 00:01:28]} Nc6 {[%clk 01:33:05]} {[%emt 00:00:09]} 8. d5 {[%clk
01:28:05]} {[%emt 00:01:13]} Nb4 {[%clk 01:33:31]} {[%emt 00:00:04]} 9. a5
{[%clk 01:00:07]} {[%emt 00:28:27]} e6 {[%clk 01:33:59]} {[%emt 00:00:02]} 10.
Bf4 {[%clk 00:59:47]} {[%emt 00:00:50]} exd5 {[%clk 01:25:41]} {[%emt
00:08:49]} 11. exd5 {[%clk 01:00:09]} {[%emt 00:00:08]} Re8 {[%clk 01:25:59]}
{[%emt 00:00:12]} 12. Bc4 {[%clk 00:56:54]} {[%emt 00:03:44]} Ne4 {[%clk
00:52:47]} {[%emt 00:33:42]} 13. Be3 {[%clk 00:35:33]} {[%emt 00:21:51]} Bg4
{[%clk 00:47:17]} {[%emt 00:06:00]} 14. Na4 {[%clk 00:34:36]} {[%emt 00:01:27]}
Bxf3 {[%clk 00:37:37]} {[%emt 00:10:09]} 15. gxf3 {[%clk 00:34:58]} {[%emt
00:00:09]} Qh4 {[%clk 00:37:56]} {[%emt 00:00:11]} 16. fxe4 {[%clk 00:28:53]}
{[%emt 00:06:35]} Rxe4 {[%clk 00:37:36]} {[%emt 00:00:50]} 17. Be2 {[%clk
00:29:18]} {[%emt 00:00:05]} Be5 {[%clk 00:28:59]} {[%emt 00:09:07]} 18. f4
{[%clk 00:29:40]} {[%emt 00:00:08]} Rxe3 {[%clk 00:29:26]} {[%emt 00:00:03]} 19.
fxe5 {[%clk 00:28:31]} {[%emt 00:01:40]} Rg3+ {[%clk 00:29:49]} {[%emt
00:00:06]} 20. Kh1 {[%clk 00:27:13]} {[%emt 00:01:48]} Rh3 {[%clk 00:29:13]}
{[%emt 00:01:07]} 21. Ra3 {[%clk 00:25:39]} {[%emt 00:02:05]} Rxh2 {[%clk
00:27:40]} {[%emt 00:02:03]} 22. Kg1 {[%clk 00:26:06]} {[%emt 00:00:02]} Rh1+
{[%clk 00:22:05]} {[%emt 00:06:05]} 23. Kg2 {[%clk 00:26:32]} {[%emt 00:00:04]}
Qh2+ {[%clk 00:22:29]} {[%emt 00:00:07]} 24. Kf3 {[%clk 00:26:58]} {[%emt
00:00:04]} Rxf1+ {[%clk 00:22:57]} {[%emt 00:00:02]} 25. Qxf1 {[%clk 00:27:09]}
{[%emt 00:00:18]} Nxc2 {[%clk 00:23:25]} {[%emt 00:00:02]} 26. Rd3 {[%clk
00:24:38]} {[%emt 00:03:00]} Qxe5 {[%clk 00:23:21]} {[%emt 00:00:34]} 27. Qd1
{[%clk 00:24:12]} {[%emt 00:00:56]} Nb4 {[%clk 00:18:42]} {[%emt 00:05:10]} 28.
Rd4 {[%clk 00:24:38]} {[%emt 00:00:04]} c5 {[%clk 00:17:53]} {[%emt 00:01:19]}
29. dxc6 {[%clk 00:25:03]} {[%emt 00:00:04]} Nxc6 {[%clk 00:18:13]} {[%emt
00:00:10]} 30. Rxd6 {[%clk 00:25:22]} {[%emt 00:00:12]} Re8 {[%clk 00:18:20]}
{[%emt 00:00:23]} 31. Nc3 {[%clk 00:25:48]} {[%emt 00:00:04]} Qh2 {[%clk
00:17:07]} {[%emt 00:01:43]} 32. Rxc6 {[%clk 00:25:10]} {[%emt 00:01:08]} bxc6
{[%clk 00:16:56]} {[%emt 00:00:41]} 33. Qd7 {[%clk 00:25:35]} {[%emt 00:00:04]}
Re5 {[%clk 00:06:54]} {[%emt 00:10:32]} 34. Bd3 {[%clk 00:21:17]} {[%emt
00:04:48]} Kg7 {[%clk 00:05:29]} {[%emt 00:01:55]} 35. Ne4 {[%clk 00:21:28]}
{[%emt 00:00:19]} Rd5 {[%clk 00:05:49]} {[%emt 00:00:11]} 0-1